bitfinex-derivatives/quotes_SOLF0:USTF0_20250312
["timestamp","ask_amount","ask_price","bid_price","bid_amount"]
[1741759919500,2.1151,121.78,121.72,33.16]
[1741759919898,241.9380937,121.81,121.76,280.73565091]
[1741759920290,0.05553848,121.8,121.77,0.05220622]
[1741759920698,241.9380937,121.81,121.77,0.05220622]
[1741759921392,250.1499937,121.81,121.77,0.05220622]
[1741759921596,250.1499937,121.81,121.79,11.19384571]
[1741759921799,0.05756106,121.8,121.79,11.19384571]
[1741759921999,223.65024617,121.81,121.79,11.19384571]
[1741759922295,226.11024617,121.81,121.79,11.19384571]
[1741759922501,267.36214617,121.81,121.79,11.19384571]
[1741759922702,264.90214617,121.81,121.77,0.05220622]
[1741759923102,0.05572213,121.8,121.77,0.05220622]
[1741759925005,6.36542213,121.8,121.77,0.05220622]
[1741759925808,14.57802213,121.8,121.77,0.05220622]
[1741759925994,6.36542213,121.8,121.77,0.05220622]
[1741759929102,177.59082717,121.81,121.77,0.05220622]
[1741759930403,0.05587829,121.8,121.77,0.05220622]
[1741759930808,0.05587829,121.8,121.78,8.2138]
[1741759931108,0.05587829,121.8,121.79,32.78]
[1741759931704,8.18851406,121.85,121.79,32.78]
[1741759932504,197.4264068,121.86,121.79,32.78]
[1741759932906,0.06069917,121.84,121.81,0.06305436]
[1741759933612,46.12011817,121.84,121.78,44.77538286]
[1741759933812,32.72,121.83,121.78,44.77538286]
[1741759934007,32.4736339,121.83,121.78,44.77538286]
[1741759934408,32.4736339,121.83,121.74,11.19384571]
[1741759934409,4.3599,121.82,121.74,11.19384571]
[1741759934811,8.2129,121.8,121.74,11.19384571]
[1741759935111,0.06083423,121.79,121.77,0.05647216]
[1741759935502,8.27403423,121.79,121.77,0.05647216]
[1741759938611,8.2138,121.78,121.77,0.05647216]
[1741759939214,8.2161,121.75,121.7,38.70014386]
[1741759939412,8.2161,121.75,121.7,71.28014386]
[1741759939713,32.56,121.8,121.71,8.2184]
[1741759939914,32.56,121.8,121.7,63.06124386]
[1741759940312,0.05337728,121.76,121.74,0.05567916]
[1741759940815,8.2158,121.75,121.74,0.05567916]
[1741759941513,8.26867728,121.76,121.74,0.05567916]
[1741759942509,0.05337728,121.76,121.74,8.27197916]
[1741759942716,0.05337728,121.76,121.74,0.05567916]
[1741759943121,0.05337728,121.76,121.74,40.77177916]
[1741759943915,8.02034541,121.79,121.74,40.77177916]
[1741759944117,2.2094,121.81,121.75,8.2157]
[1741759944514,8.2126,121.8,121.74,32.5]
[1741759944714,8.2126,121.8,121.76,8.215]
[1741759944914,8.2126,121.8,121.74,32.5]
[1741759945112,8.26944249,121.79,121.77,0.06178379]
[1741759945620,0.05614249,121.79,121.77,0.06178379]
[1741759946029,8.26924249,121.79,121.77,0.06178379]
[1741759946527,8.2138,121.78,121.77,0.06178379]
[1741759947317,8.2162,121.75,121.7,2.1562]
[1741759947516,8.2162,121.75,121.7,34.5962]
[1741759948122,8.2154,121.76,121.7,62.92124386]
[1741759948321,246.44,121.79,121.7,62.92124386]
[1741759948626,0.06282375,121.74,121.72,8.27484595]
[1741759948918,8.215,121.77,121.72,0.05764595]
[1741759949119,0.05207882,121.74,121.72,8.27524595]
[1741759949325,246.44,121.79,121.72,0.05764595]
[1741759949528,0.05519683,121.74,121.72,0.05764595]
[1741759949726,0.05955205,121.74,121.73,8.2172]
[1741759950123,0.05955205,121.74,121.73,40.5772]
[1741759952621,2.2094,121.81,121.77,8.2143]
[1741759952824,246.44,121.84,121.76,32.32]
[1741759953123,248.4587,121.84,121.78,8.2132]
[1741759953328,248.4587,121.84,121.76,60.64504386]
[1741759953531,248.4587,121.84,121.76,32.32]
[1741759953829,0.05429404,121.8,121.78,0.05575006]
[1741759956830,0.05429404,121.8,121.78,8.26915006]
[1741759958233,0.05429404,121.8,121.78,0.05575006]
[1741759959533,0.05429404,121.8,121.78,8.26905006]
[1741759960936,0.05429404,121.8,121.79,8.2131]
[1741759962136,0.05429404,121.8,121.79,40.3131]
[1741759962536,8.2093,121.85,121.82,8.211]
[1741759963033,7.9630047,121.85,121.82,8.211]
[1741759963226,7.9630047,121.85,121.81,8.2114]
[1741759963424,7.9630047,121.85,121.79,32.1]
[1741759963627,0.06198296,121.84,121.82,0.05191283]
[1741759963937,0.06198296,121.84,121.82,40.32261283]
[1741759964125,0.06198296,121.84,121.82,32.11191283]
[1741759965635,0.06198296,121.84,121.83,8.2104]
[1741759965841,0.06198296,121.84,121.82,60.43695669]
[1741759967836,0.06198296,121.84,121.82,32.11191283]
[1741759968237,0.06198296,121.84,121.82,60.43695669]
[1741759969040,8.2072,121.88,121.83,8.21]
[1741759970239,0.05238588,121.87,121.84,8.26111828]
[1741759970443,0.05238588,121.87,121.85,31.98]
[1741759970939,8.26018588,121.87,121.85,31.98]
[1741759971538,0.05238588,121.87,121.85,31.98]
[1741759972745,0.05238588,121.87,121.86,8.2084]
[1741759973441,0.05238588,121.87,121.85,40.1888]
[1741759975040,0.05238588,121.87,121.85,31.98]
[1741759975639,0.05238588,121.87,121.85,40.1889]
[1741759976042,0.05238588,121.87,121.86,8.2084]
[1741759976242,0.05238588,121.87,121.86,36.53344386]
[1741759976844,6.3772,121.93,121.86,28.32504386]
[1741759977047,6.13103606,121.93,121.89,8.2062]
[1741759977447,14.33493606,121.93,121.89,8.2062]
[1741759977749,246.32,121.94,121.9,8.2057]
[1741759978051,0.05937648,121.93,121.91,0.05186711]
[1741759979243,8.2043,121.92,121.91,0.05186711]
[1741759980047,0.05937648,121.93,121.88,31.86]
[1741759980249,8.2068,121.89,121.86,31.82]
[1741759981251,8.26131646,121.89,121.86,40.08381368]
[1741759981653,0.05451646,121.89,121.86,40.08381368]
[1741759982449,8.26091646,121.89,121.86,40.08381368]
[1741759982651,0.05451646,121.89,121.86,40.08381368]
[1741759983659,0.05451646,121.89,121.87,8.2077]
[1741759984161,0.05451646,121.89,121.86,31.87561368]
[1741759984370,0.05451646,121.89,121.87,8.2076]
[1741759984555,0.05451646,121.89,121.86,31.87561368]
[1741759984861,0.05451646,121.89,121.86,0.05561368]
[1741759985962,0.05451646,121.89,121.8,28.32504386]
[1741759986156,28.32504386,121.88,121.78,73.31066948]
[1741759986362,31.7,121.87,121.78,105.01066948]
[1741759986561,8.2101,121.84,121.8,8.212]
[1741759986860,2.1491,121.86,121.78,105.01066948]
[1741759987261,0.06095482,121.83,121.81,0.06116051]
[1741759987458,0.06095482,121.83,121.81,31.76116051]
[1741759987664,0.06095482,121.83,121.82,8.2111]
[1741759989057,0.06095482,121.83,121.81,31.76116051]
[1741759989662,0.06095482,121.83,121.82,8.2111]
[1741759990564,0.06095482,121.83,121.81,31.76116051]
[1741759990765,0.06095482,121.83,121.81,39.97256051]
[1741759992266,0.06095482,121.83,121.82,8.2111]
[1741759993967,2.1388,121.89,121.86,8.2084]
[1741759994168,2.1388,121.89,121.82,28.32504386]
[1741759994169,10.3455,121.89,121.84,31.62]
[1741759994470,10.3455,121.89,121.84,59.94504386]
[1741759994969,2.1388,121.89,121.86,8.208]
[1741759995170,0.05498627,121.88,121.86,8.208]
[1741759995765,0.05498627,121.88,121.85,0.05294763]
[1741759996368,0.05498627,121.88,121.87,8.2077]
[1741759997373,0.05498627,121.88,121.87,39.7877]
[1741759997577,2.142,121.93,121.87,31.58]
[1741759998375,2.142,121.93,121.89,8.2063]
[1741759998577,0.05521597,121.92,121.9,0.05537245]
[1741759999374,0.05521597,121.92,121.91,8.205]
[1741759999980,2.1953,121.96,121.94,8.203]
[1741760000176,2.1953,121.96,121.9,59.86504386]
[1741760000669,2.1953,121.96,121.92,8.2038]
[1741760001071,0.05558338,121.95,121.93,0.06283774]
[1741760001275,0.05558338,121.95,121.93,8.26643774]
[1741760001475,0.05558338,121.95,121.93,0.06283774]
[1741760002073,0.05558338,121.95,121.94,8.203]
[1741760004284,0.05558338,121.95,121.93,39.72633774]
[1741760005888,0.05558338,121.95,121.94,8.203]
[1741760006388,0.05558338,121.95,121.94,25.84568648]
[1741760007984,2.1378,122.0,121.94,17.64268648]
[1741760008188,2.1378,122.0,121.97,8.2007]
[1741760008387,2.1378,122.0,121.96,49.00268648]
[1741760008789,10.3372,122.0,121.96,57.20398648]
[1741760008992,2.1378,122.0,121.96,57.20398648]
[1741760009184,2.1378,122.0,121.89,6.3177]
[1741760009185,0.05652732,121.99,121.97,0.05544956]
[1741760009490,0.05652732,121.99,121.94,49.00268648]
[1741760009491,33.5178,122.0,121.94,31.36]
[1741760009685,33.5178,122.0,121.92,57.22678648]
[1741760009890,8.2018,121.96,121.92,57.22678648]
[1741760010289,51.16048648,122.0,121.92,57.22678648]
[1741760010494,8.2024,121.95,121.92,57.22678648]
[1741760010686,31.41770235,121.97,121.92,0.05401647]
[1741760010992,8.2037,121.93,121.92,0.05401647]
[1741760011195,31.36,121.97,121.92,0.05401647]
[1741760011490,0.06178019,121.94,121.92,0.05401647]
[1741760012094,30.97505652,121.97,121.92,0.05401647]
[1741760013183,8.2034,121.94,121.92,0.05401647]
[1741760013592,0.05117417,121.96,121.92,0.05401647]
[1741760013803,8.25307417,121.96,121.92,8.25831647]
[1741760014293,0.05117417,121.96,121.93,8.2033]
[1741760015093,0.05117417,121.96,121.92,31.39401647]
[1741760015886,0.05117417,121.96,121.93,8.2033]
[1741760016690,0.05117417,121.96,121.94,8.2027]
[1741760017188,0.05117417,121.96,121.92,31.39401647]
[1741760017392,0.05117417,121.96,121.93,8.2033]
[1741760017788,0.05117417,121.96,121.92,31.39401647]
[1741760019391,0.05117417,121.96,121.94,8.2029]
[1741760020495,0.05117417,121.96,121.92,59.64375961]
[1741760021985,0.05117417,121.96,121.95,8.2023]
[1741760022192,2.1352,122.01,121.95,31.18]
[1741760022398,2.1352,122.01,121.98,8.1999]
[1741760023090,8.1993,122.0,121.96,8.2013]
[1741760023593,8.1993,122.0,121.97,0.05887858]
[1741760024193,10.3339,122.01,121.97,8.25977858]
[1741760024588,2.1352,122.01,121.97,0.05887858]
[1741760025193,4.2427,122.0,121.97,0.05887858]
[1741760026797,4.2427,122.0,120.79,81.29239414]
[1741760026798,32.49244314,122.0,121.9,28.24974314]
[1741760026994,4.2427,122.0,121.88,28.24974314]
[1741760027298,8.2047,121.92,121.88,8.2068]
[1741760027498,8.2047,121.92,121.87,76.16562562]
[1741760027696,31.18,121.94,121.87,76.16562562]
[1741760027897,8.25796054,121.91,121.88,8.26350871]
[1741760028699,8.206,121.9,121.88,0.05670871]
[1741760028896,0.05286054,121.91,121.88,0.05670871]
[1741760029091,31.21286054,121.91,121.88,0.05670871]
[1741760029298,8.2064,121.89,121.88,0.05670871]
[1741760029896,31.21286054,121.91,121.86,44.98562562]
[1741760030902,8.2077,121.87,121.86,44.98562562]
[1741760031102,31.16,121.91,121.86,44.98562562]
[1741760031304,0.05608344,121.88,121.85,0.05385404]
[1741760032303,8.26318344,121.88,121.85,0.05385404]
[1741760032803,8.2078,121.87,121.85,0.05385404]
[1741760033198,8.26338344,121.88,121.85,0.05385404]
[1741760033608,0.05608344,121.88,121.85,0.05385404]
[1741760034308,8.2077,121.87,121.85,0.05385404]
[1741760035711,8.26338344,121.88,121.85,0.05385404]
[1741760036506,8.26338344,121.88,121.85,8.26285404]
[1741760037203,0.05608344,121.88,121.87,8.2077]
[1741760038008,0.05608344,121.88,121.87,25.88230599]
[1741760039113,0.05608344,121.88,121.87,17.67460599]
[1741760040413,0.05608344,121.88,121.86,31.04]
[1741760040611,0.05608344,121.88,121.85,17.72846003]
[1741760040814,0.05608344,121.88,121.86,8.208]
[1741760041015,0.05608344,121.88,121.85,17.72846003]
[1741760041715,0.05608344,121.88,121.86,8.208]
[1741760042219,8.26308344,121.88,121.85,17.72846003]
[1741760043412,0.05608344,121.88,121.85,0.05385404]
[1741760044315,8.2077,121.87,121.85,0.05385404]
[1741760044713,0.05608344,121.88,121.85,17.72846003]
[1741760045519,8.26348344,121.88,121.85,25.93716003]
[1741760045916,0.05608344,121.88,121.85,17.72846003]
[1741760046216,0.05608344,121.88,121.85,0.05385404]
[1741760046624,0.05608344,121.88,121.85,17.72846003]
[1741760047120,8.26318344,121.88,121.85,25.93726003]
[1741760048417,0.05608344,121.88,121.86,8.208]
[1741760051817,0.05608344,121.88,121.87,56.70230599]
[1741760052123,2.1093,121.94,121.87,48.49460599]
[1741760053222,0.05714634,121.92,121.89,8.26845383]
[1741760053619,0.05714634,121.92,121.89,17.73705982]
[1741760054020,0.05714634,121.92,121.91,8.205]
[1741760054224,0.05714634,121.92,121.91,25.87960599]
[1741760054724,12.6172,121.98,121.94,8.2029]
[1741760055126,12.6172,121.98,121.93,48.49460599]
[1741760055416,4.4166,121.98,121.93,56.69790599]
[1741760055622,8.2011,121.97,121.93,56.69790599]
[1741760055817,8.2011,121.97,121.94,0.05574065]
[1741760056524,4.4166,121.98,121.94,0.05574065]
[1741760056720,12.6173,121.98,121.94,0.05574065]
[1741760057628,8.2012,121.97,121.94,0.05574065]
[1741760060327,4.4166,121.98,121.94,0.05574065]
[1741760060825,8.2011,121.97,121.94,0.05574065]
[1741760061721,2.0131,121.99,121.94,0.05574065]
[1741760061923,8.2006,121.98,121.94,8.25864065]
[1741760062119,8.2006,121.98,121.94,0.05574065]
[1741760062720,2.0131,121.99,121.94,0.05574065]
[1741760062927,48.35460599,121.98,121.94,0.05574065]
[1741760063123,17.67460599,121.96,121.89,30.7]
[1741760063325,8.2061,121.9,121.87,11.40408847]
[1741760063624,17.67460599,121.94,121.87,11.40408847]
[1741760064222,0.05566773,121.92,121.89,0.05346636]
[1741760065925,0.05566773,121.92,121.89,8.25966636]
[1741760066229,0.05566773,121.92,121.89,0.05346636]
[1741760066430,0.05566773,121.92,121.89,8.25976636]
[1741760067229,0.05566773,121.92,121.89,8.25956636]
[1741760067530,0.05566773,121.92,121.89,0.05346636]
[1741760068130,0.05566773,121.92,121.89,30.73346636]
[1741760068526,0.05566773,121.92,121.89,48.40807235]
[1741760069025,0.05566773,121.92,121.91,8.205]
[1741760070431,2.0669,121.98,121.91,17.67460599]
[1741760070627,2.0669,121.98,121.95,8.2018]
[1741760071629,10.2678,121.98,121.95,0.06200222]
[1741760072124,2.0669,121.98,121.95,0.06200222]
[1741760072329,8.2012,121.97,121.95,0.06200222]
[1741760072929,2.0669,121.98,121.95,0.06200222]
[1741760073834,8.2016,121.97,121.95,0.06200222]
[1741760074933,8.2017,121.96,121.95,0.06200222]
[1741760075327,8.2012,121.97,121.95,0.06200222]
[1741760075635,2.0669,121.98,121.95,0.06200222]
[1741760075932,8.2017,121.96,121.95,0.06200222]
[1741760076132,2.0669,121.98,121.95,0.06200222]
[1741760076638,8.2014,121.97,121.95,0.06200222]
[1741760077131,2.0669,121.98,121.95,0.06200222]
[1741760077529,8.2015,121.97,121.95,0.06200222]
[1741760078437,10.2675,121.98,121.95,0.06200222]
[1741760078627,2.0669,121.98,121.95,0.06200222]
[1741760080342,8.2014,121.97,121.95,0.06200222]
[1741760081641,10.2674,121.98,121.95,0.06200222]
[1741760082037,2.0669,121.98,121.95,0.06200222]
[1741760082238,8.2015,121.97,121.95,0.06200222]
[1741760082733,2.0669,121.98,121.95,0.06200222]
[1741760085141,8.2014,121.97,121.95,0.06200222]
[1741760085440,2.0669,121.98,121.95,0.06200222]
[1741760086142,8.2014,121.97,121.95,0.06200222]
[1741760088039,13.36345821,121.98,121.95,0.06200222]
[1741760088638,11.29655821,121.96,121.9,11.29655821]
[1741760088843,11.29655821,121.94,121.89,56.28218383]
[1741760089036,11.29655821,121.95,121.9,11.29655821]
[1741760089236,8.2034,121.94,121.91,8.2047]
[1741760089842,8.25803876,121.94,121.91,8.26283272]
[1741760090442,8.25803876,121.94,121.91,0.05813272]
[1741760093238,0.05463876,121.94,121.93,11.29655821]
[1741760093433,0.05463876,121.94,121.92,41.95655821]
[1741760094443,0.05463876,121.94,121.92,50.16045821]
[1741760095540,0.05463876,121.94,121.93,8.2037]
[1741760097845,0.05463876,121.94,121.92,50.16065821]
[1741760098545,8.25763876,121.94,121.92,41.95655821]
[1741760099942,0.05463876,121.94,121.92,41.95655821]
[1741760100542,0.05463876,121.94,121.92,50.16035821]
[1741760100742,0.05463876,121.94,121.92,41.95655821]
[1741760101144,8.25763876,121.94,121.92,41.95655821]
[1741760101547,0.05463876,121.94,121.92,41.95655821]
[1741760101748,0.05463876,121.94,121.92,50.16085821]
[1741760102548,0.05463876,121.94,121.92,41.95655821]
[1741760103143,0.05463876,121.94,121.93,8.2037]
[1741760103538,0.05463876,121.94,121.92,50.16055821]
[1741760103950,0.05463876,121.94,121.92,41.95655821]
[1741760104149,0.05463876,121.94,121.93,8.2037]
[1741760104338,0.05463876,121.94,121.92,41.95655821]
[1741760105752,0.05463876,121.94,121.93,8.2037]
[1741760106451,2.0571,121.99,121.92,41.95655821]
[1741760106652,2.0571,121.99,121.95,19.49875821]
[1741760106845,2.0571,121.99,121.95,41.95655821]
[1741760107051,32.7797,122.04,121.98,8.2002]
[1741760107251,11.29655821,122.01,121.97,11.29655821]
[1741760107455,8.1996,122.0,121.96,11.29655821]
[1741760107650,8.1996,122.0,121.98,0.05288725]
[1741760108050,11.29655821,122.01,121.98,0.05288725]
[1741760108252,11.29655821,122.0,121.98,0.05288725]
[1741760108750,8.1996,121.99,121.98,0.05288725]
[1741760109354,8.1994,122.0,121.98,0.05288725]
[1741760110054,8.1996,122.0,121.98,0.05288725]
[1741760110255,11.29655821,122.0,121.98,0.05288725]
[1741760111848,8.1996,121.99,121.98,0.05288725]
[1741760114556,8.2023,121.95,121.93,30.66]
[1741760114752,8.2023,121.95,121.92,61.56464668]
[1741760115157,8.2023,121.95,121.92,42.06408847]
[1741760115454,11.29655821,121.95,121.92,11.40408847]
[1741760115650,8.2037,121.93,121.92,11.40408847]
[1741760115855,11.29655821,121.93,121.91,123.13230289]
[1741760116052,11.29655821,121.92,121.91,41.63734701]
[1741760116253,8.2057,121.9,121.89,44.97904363]
[1741760116453,19.50225821,121.9,121.89,44.97904363]
[1741760116653,19.50175821,121.91,121.89,44.97904363]
[1741760116859,11.29655821,121.92,121.89,44.97904363]
[1741760117057,0.05887024,121.91,121.89,45.03789266]
[1741760117753,0.05887024,121.91,121.89,53.24409266]
[1741760118159,0.05887024,121.91,121.89,45.03789266]
[1741760118960,8.26407024,121.91,121.89,45.03789266]
[1741760119163,0.05887024,121.91,121.89,0.05884903]
[1741760119358,11.35542845,121.91,121.89,0.05884903]
[1741760119856,8.2057,121.9,121.89,0.05884903]
[1741760120258,19.50225821,121.9,121.89,0.05884903]
[1741760120662,8.2079,121.87,121.84,38.8694]
[1741760120960,11.29655821,121.89,121.84,11.29655821]
[1741760121160,41.95655821,121.9,121.85,11.29655821]
[1741760121357,41.95655821,121.9,121.85,19.50525821]
[1741760121556,41.95655821,121.9,121.85,11.29655821]
[1741760121855,41.95655821,121.9,121.86,0.05343172]
[1741760121856,8.2081,121.87,121.86,0.05343172]
[1741760122261,19.50465821,121.87,121.86,0.05343172]
[1741760122755,8.2105,121.83,121.81,94.82302428]
[1741760122957,11.29655821,121.84,121.81,94.82302428]
[1741760123760,11.29655821,121.83,121.81,94.82302428]
[1741760123964,11.29655821,121.83,121.81,94.88558475]
[1741760124153,19.50765821,121.82,121.81,94.88558475]
[1741760124462,48.41685834,121.84,121.81,94.88558475]
[1741760124663,8.2105,121.83,121.81,94.88558475]
[1741760124859,48.41685834,121.84,121.81,94.88558475]
[1741760125256,8.2111,121.82,121.81,94.88558475]
[1741760125656,8.2111,121.82,121.81,0.06256047]
[1741760125859,48.41685834,121.84,121.81,0.06256047]
[1741760126454,8.2109,121.83,121.81,0.06256047]
[1741760126662,48.41685834,121.84,121.81,0.06256047]
[1741760127364,8.2111,121.82,121.81,0.06256047]
[1741760127967,25.9075656,121.82,121.81,0.06256047]
[1741760128668,10.4175,121.83,121.81,0.06256047]
[1741760128964,17.6964656,121.82,121.81,0.06256047]
[1741760129667,2.2069,121.83,121.81,0.06256047]
[1741760130461,8.2111,121.82,121.81,0.06256047]
[1741760132264,246.30039274,121.84,121.81,0.06256047]
[1741760132863,8.2109,121.83,121.81,0.06256047]
[1741760133166,246.30039274,121.84,121.81,0.06256047]
[1741760134457,276.98039274,121.84,121.81,0.06256047]
[1741760134668,246.30039274,121.84,121.81,0.06256047]
[1741760134868,276.98039274,121.84,121.81,0.06256047]
[1741760136967,285.19039274,121.84,121.81,0.06256047]
[1741760137372,294.67685834,121.84,121.81,0.06256047]
[1741760137565,296.73555834,121.84,121.81,0.06256047]
[1741760138171,8.2111,121.82,121.81,0.06256047]
[1741760139176,17.6964656,121.82,121.74,4.213]
[1741760139369,30.68,121.81,121.74,4.213]
[1741760139568,30.68,121.81,121.74,8.2161]
[1741760139769,8.2141,121.78,121.74,8.2161]
[1741760140172,30.7,121.78,121.71,17.6964656]
[1741760140372,8.2156,121.76,121.75,0.05701519]
[1741760140671,0.0625754,121.77,121.75,0.05701519]
[1741760140880,8.2151,121.76,121.75,0.05701519]
[1741760141175,0.0625754,121.77,121.75,0.05701519]
[1741760141572,17.6964656,121.76,121.68,326.58496781]
[1741760141877,30.94,121.75,121.68,357.54496781]
[1741760142269,277.28,121.77,121.69,17.6964656]
[1741760142674,17.6964656,121.76,121.68,357.54496781]
[1741760142873,0.05879063,121.74,121.72,0.05597895]
[1741760143981,0.05879063,121.74,121.73,8.2172]
[1741760144170,35.5314,121.79,121.72,2.10057895]
[1741760144572,39.6135,121.79,121.75,8.2153]
[1741760145170,31.4,121.79,121.73,2.0819]
[1741760145384,0.06262582,121.78,121.76,0.05662636]
[1741760145879,8.2145,121.77,121.76,0.05662636]
[1741760146579,0.06262582,121.78,121.76,0.05662636]
[1741760147377,0.06262582,121.78,121.76,8.27132636]
[1741760147578,0.06262582,121.78,121.76,0.05662636]
[1741760147976,0.06262582,121.78,121.77,8.2145]
[1741760148181,0.06262582,121.78,121.77,39.8145]
[1741760148581,246.36,121.82,121.77,31.6]
[1741760148783,10.3096,121.85,121.77,49.2964656]
[1741760149080,17.6964656,121.86,121.77,49.2964656]
[1741760149780,0.06215773,121.83,121.82,8.2111]
[1741760149983,17.6964656,121.9,121.81,49.2764656]
[1741760150174,17.6964656,121.88,121.79,31.6]
[1741760150379,8.21,121.84,121.79,39.8126]
[1741760150578,8.21,121.84,121.79,31.6]
[1741760150785,17.6964656,121.87,121.79,31.6]
[1741760150986,8.2093,121.85,121.8,8.212]
[1741760151178,0.06114428,121.84,121.82,0.06199192]
[1741760154091,0.06114428,121.84,121.82,39.89249192]
[1741760154280,0.06114428,121.84,121.82,31.68199192]
[1741760155484,17.75760988,121.84,121.82,0.06199192]
[1741760155683,0.06114428,121.84,121.82,0.06199192]
[1741760157687,8.27124428,121.84,121.82,0.06199192]
[1741760159990,0.06114428,121.84,121.82,0.06199192]
[1741760160690,0.06114428,121.84,121.83,8.2104]
[1741760161697,17.6964656,121.9,121.82,0.06199192]
[1741760161993,17.6964656,121.9,121.81,49.3364656]
[1741760162193,8.2075,121.88,121.81,49.3364656]
[1741760162388,8.2075,121.88,121.84,8.2094]
[1741760162590,49.3964656,121.9,121.84,8.2094]
[1741760162791,49.3964656,121.9,121.81,49.3364656]
[1741760162991,0.06062554,121.88,121.86,0.05326337]
[1741760163193,0.06062554,121.88,121.86,8.26116337]
[1741760163388,0.06062554,121.88,121.86,0.05326337]
[1741760163984,0.06062554,121.88,121.86,8.26116337]
[1741760164493,0.06062554,121.88,121.86,0.05326337]
[1741760168998,31.82062554,121.88,121.86,6.337e-05]
[1741760169193,34.28062554,121.88,121.86,6.337e-05]
[1741760169496,12.3249,121.87,121.86,6.337e-05]
[1741760169997,14.7849,121.87,121.86,6.337e-05]
[1741760171194,6.5772,121.87,121.76,123.5187509]
[1741760171391,8.2142,121.78,121.76,123.5187509]
[1741760171591,31.92,121.79,121.76,123.5187509]
[1741760172096,278.14,121.81,121.76,123.5187509]
[1741760172496,0.05919139,121.8,121.77,0.06222547]
[1741760172901,0.05919139,121.8,121.77,8.27642547]
[1741760173095,0.05919139,121.8,121.77,0.06222547]
[1741760173291,0.05919139,121.8,121.78,8.2134]
[1741760173485,0.05919139,121.8,121.77,0.06222547]
[1741760173891,8.27209139,121.8,121.77,0.06222547]
[1741760174091,0.05919139,121.8,121.77,0.06222547]
[1741760175196,0.05919139,121.8,121.77,8.27662547]
[1741760175395,0.05919139,121.8,121.77,0.06222547]
[1741760175796,0.05919139,121.8,121.77,8.27632547]
[1741760175996,0.05919139,121.8,121.77,0.06222547]
[1741760177798,8.27189139,121.8,121.77,0.06222547]
[1741760178296,0.05919139,121.8,121.77,8.27652547]
[1741760178697,0.05919139,121.8,121.77,0.06222547]
[1741760179498,0.05919139,121.8,121.78,8.2132]
[1741760179699,0.05919139,121.8,121.77,0.06222547]
[1741760181490,0.05919139,121.8,121.78,31.94]
[1741760181798,248.4482,121.86,121.78,31.94]
[1741760182500,246.36,121.86,121.83,8.21]
[1741760182803,246.42239334,121.86,121.83,0.0590986]
[1741760183004,0.06239334,121.86,121.84,8.2097]
[1741760183207,0.06239334,121.86,121.83,0.0590986]
[1741760183708,0.06239334,121.86,121.85,8.2091]
[1741760184202,0.06239334,121.86,121.83,0.0590986]
[1741760185897,8.2094,121.85,121.83,0.0590986]
[1741760187010,8.27109334,121.86,121.83,0.0590986]
[1741760187906,8.2095,121.85,121.83,0.0590986]
[1741760188109,0.06239334,121.86,121.83,0.0590986]
[1741760188405,8.2097,121.84,121.83,0.0590986]
[1741760188708,4.14499334,121.86,121.83,0.0590986]
[1741760190607,0.06239334,121.86,121.84,8.2097]
[1741760191311,0.06239334,121.86,121.83,0.0590986]
[1741760191713,0.06239334,121.86,121.84,8.2093]
[1741760192416,0.06239334,121.86,121.83,8.2691986]
[1741760192908,8.27109334,121.86,121.83,8.2691986]
[1741760193304,0.06239334,121.86,121.84,8.2097]
[1741760193613,0.06239334,121.86,121.83,0.0590986]
[1741760194211,8.2093,121.85,121.83,0.0590986]
[1741760194515,0.06239334,121.86,121.83,0.0590986]
[1741760195014,8.27109334,121.86,121.83,8.2688986]
[1741760195214,0.06239334,121.86,121.83,0.0590986]
[1741760195918,0.06239334,121.86,121.84,8.2094]
[1741760196706,0.06239334,121.86,121.85,8.2091]
[1741760199622,0.06239334,121.86,121.84,8.2094]
[1741760199923,0.06239334,121.86,121.83,6.4090986]
[1741760200114,0.06239334,121.86,121.83,0.0590986]
[1741760200521,8.2096,121.85,121.83,0.0590986]
[1741760200825,0.06239334,121.86,121.83,0.0590986]
[1741760201027,8.27139334,121.86,121.83,0.0590986]
[1741760201420,0.06239334,121.86,121.83,0.0590986]
[1741760202218,0.06239334,121.86,121.84,8.2097]
[1741760202421,246.36,121.91,121.84,31.78]
[1741760202621,246.36,121.91,121.84,38.0094]
[1741760202821,8.2058,121.9,121.87,8.2076]
[1741760203517,8.206,121.9,121.84,38.0094]
[1741760203718,8.24525337,121.9,121.87,0.05694596]
[1741760206426,0.03925337,121.9,121.87,0.05694596]
[1741760206621,88.39287623,121.97,121.87,34.25694596]
[1741760206829,18.16098707,121.98,121.87,221.74]